Workbook

Sheet Ketvirčio pardavimo ataskaita
A2: KETVIRČIO PARDAVIMO ATASKAITA | J2: RODYTI SVARBIAUSIUS | K2: 5 | L2: PRODUKTAI
J4: RODYTI VISA KITA | K4: NE | L4: PRODUKTAI
B34: PRODUKTAS | C34: 1 KETVIRTIS | D34: 2 KETVIRTIS | E34: 3 KETVIRTIS | F34: 4 KETVIRTIS | G34: IŠ VISO
B35: Rėmai | C35: 4000 | D35: 4500 | E35: 5000 | F35: 5000 | G35: =SUM(Pardavimas[[#This Row],[1 KETVIRTIS]:[4 KETVIRTIS]]) -> 18500
B36: Diskiniai stabdžiai, priekiniai | C36: 294 | D36: 249.9 | E36: 323.4 | F36: 367.5 | G36: =SUM(Pardavimas[[#This Row],[1 KETVIRTIS]:[4 KETVIRTIS]]) -> 1234.8
B37: Stabdžių kaladėlės, priekinės | C37: 200 | D37: 170 | E37: 220 | F37: 250 | G37: =SUM(Pardavimas[[#This Row],[1 KETVIRTIS]:[4 KETVIRTIS]]) -> 840
B38: Diskiniai stabdžiai, galiniai | C38: 400 | D38: 340 | E38: 440 | F38: 500 | G38: =SUM(Pardavimas[[#This Row],[1 KETVIRTIS]:[4 KETVIRTIS]]) -> 1680
B39: Stabdžių kaladėlės, galinės | C39: 294 | D39: 249.9 | E39: 323.4 | F39: 367.5 | G39: =SUM(Pardavimas[[#This Row],[1 KETVIRTIS]:[4 KETVIRTIS]]) -> 1234.8
B40: Balneliai | C40: 235 | D40: 199.75 | E40: 32 | F40: 293.75 | G40: =SUM(Pardavimas[[#This Row],[1 KETVIRTIS]:[4 KETVIRTIS]]) -> 760.5
B41: Šakės | C41: 100 | D41: 85 | E41: 110 | F41: 125 | G41: =SUM(Pardavimas[[#This Row],[1 KETVIRTIS]:[4 KETVIRTIS]]) -> 420
B42: Stabdžių laidai | C42: 300 | D42: 255 | E42: 330 | F42: 375 | G42: =SUM(Pardavimas[[#This Row],[1 KETVIRTIS]:[4 KETVIRTIS]]) -> 1260
B43: Pavarų laidai | C43: 250 | D43: 212.5 | E43: 275 | F43: 312.5 | G43: =SUM(Pardavimas[[#This Row],[1 KETVIRTIS]:[4 KETVIRTIS]]) -> 1050
B44: Galinės žvaigždutės | C44: 400 | D44: 340 | E44: 440 | F44: 500 | G44: =SUM(Pardavimas[[#This Row],[1 KETVIRTIS]:[4 KETVIRTIS]]) -> 1680
B45: Priekinės žvaigždutės | C45: 200 | D45: 170 | E45: 220 | F45: 250 | G45: =SUM(Pardavimas[[#This Row],[1 KETVIRTIS]:[4 KETVIRTIS]]) -> 840
B46: Ragai | C46: 1895 | D46: 1610.75 | E46: 3445 | F46: 3333 | G46: =SUM(Pardavimas[[#This Row],[1 KETVIRTIS]:[4 KETVIRTIS]]) -> 10283.75
B47: Stabdžių rankenėlė | C47: 544 | D47: 462.4 | E47: 598.4 | F47: 680 | G47: =SUM(Pardavimas[[#This Row],[1 KETVIRTIS]:[4 KETVIRTIS]]) -> 2284.8
B48: Sėdynės laikikliai | C48: 200 | D48: 170 | E48: 220 | F48: 250 | G48: =SUM(Pardavimas[[#This Row],[1 KETVIRTIS]:[4 KETVIRTIS]]) -> 840
B49: Ragų gnybtai | C49: 60 | D49: 51 | E49: 66 | F49: 75 | G49: =SUM(Pardavimas[[#This Row],[1 KETVIRTIS]:[4 KETVIRTIS]]) -> 252
B50: Sėdynės krepšiai | C50: 2413 | D50: 2051.05 | E50: 4000 | F50: 3016.25 | G50: =SUM(Pardavimas[[#This Row],[1 KETVIRTIS]:[4 KETVIRTIS]]) -> 11480.3
B51: Stipinai | C51: 233 | D51: 198.05 | E51: 256.3 | F51: 291.25 | G51: =SUM(Pardavimas[[#This Row],[1 KETVIRTIS]:[4 KETVIRTIS]]) -> 978.6
B52: Ratlankiai | C52: 354 | D52: 300.9 | E52: 389.4 | F52: 442.5 | G52: =SUM(Pardavimas[[#This Row],[1 KETVIRTIS]:[4 KETVIRTIS]]) -> 1486.8
B53: Padangos | C53: 423 | D53: 359.55 | E53: 465.3 | F53: 528.75 | G53: =SUM(Pardavimas[[#This Row],[1 KETVIRTIS]:[4 KETVIRTIS]]) -> 1776.6
B54: Rankenos | C54: 2222 | D54: 1888.7 | E54: 2444.2 | F54: 2777.5 | G54: =SUM(Pardavimas[[#This Row],[1 KETVIRTIS]:[4 KETVIRTIS]]) -> 9332.4
B55: Rankenų juosta | C55: 1550.4 | D55: 1317.84 | E55: 1705.44 | F55: 1938 | G55: =SUM(Pardavimas[[#This Row],[1 KETVIRTIS]:[4 KETVIRTIS]]) -> 6511.68
B56: Paminkštinimai | C56: 30 | D56: 25.5 | E56: 33 | F56: 37.5 | G56: =SUM(Pardavimas[[#This Row],[1 KETVIRTIS]:[4 KETVIRTIS]]) -> 126
B57: Grandinės | C57: 208 | D57: 176.8 | E57: 228.8 | F57: 260 | G57: =SUM(Pardavimas[[#This Row],[1 KETVIRTIS]:[4 KETVIRTIS]]) -> 873.6
B58: Permetėjai | C58: 356 | D58: 302.6 | E58: 391.6 | F58: 445 | G58: =SUM(Pardavimas[[#This Row],[1 KETVIRTIS]:[4 KETVIRTIS]]) -> 1495.2
B59: Greito atlaisvinimo įvorės | C59: 258 | D59: 219.3 | E59: 283.8 | F59: 322.5 | G59: =SUM(Pardavimas[[#This Row],[1 KETVIRTIS]:[4 KETVIRTIS]]) -> 1083.6
B60: Standartinės įvorės | C60: 414 | D60: 351.9 | E60: 455.4 | F60: 517.5 | G60: =SUM(Pardavimas[[#This Row],[1 KETVIRTIS]:[4 KETVIRTIS]]) -> 1738.8
B61: Pedalai | C61: 369 | D61: 313.65 | E61: 405.9 | F61: 461.25 | G61: =SUM(Pardavimas[[#This Row],[1 KETVIRTIS]:[4 KETVIRTIS]]) -> 1549.8
B62: Grandinės apsaugos | C62: 324 | D62: 275.4 | E62: 356.4 | F62: 405 | G62: =SUM(Pardavimas[[#This Row],[1 KETVIRTIS]:[4 KETVIRTIS]]) -> 1360.8
B63: Veidrodėliai | C63: 87 | D63: 73.95 | E63: 95.7 | F63: 108.75 | G63: =SUM(Pardavimas[[#This Row],[1 KETVIRTIS]:[4 KETVIRTIS]]) -> 365.4

Sheet skaičiavimai (hidden)
A1: *** Šis puslapis turi būti paslėptas ***
E4: Produktas | F4: 1 KETVIRTIS | G4: 2 KETVIRTIS | H4: 3 KETVIRTIS | I4: 4 KETVIRTIS | J4: Iš viso
B5: 1 | C5: =IF($B5>n,"",LARGE(Pardavimas[IŠ VISO],1)) -> 18500 | D5: =IF($B5>n,"",IF(C4=C5,MATCH(C5,OFFSET(Pardavimas[IŠ VISO],D4,),0)+D4,MATCH(C5,Pardavimas[IŠ VISO],0))) -> 1 | E5: =IF($B5>n,"",INDEX(Pardavimas[PRODUKTAS],D5)) -> Rėmai | F5: =IF($B5>n,"",INDEX(Pardavimas[1 KETVIRTIS],$D5)) -> 4000 | G5: =IF($B5>n,"",INDEX(Pardavimas[2 KETVIRTIS],$D5)) -> 4500 | H5: =IF($B5>n,"",INDEX(Pardavimas[3 KETVIRTIS],$D5)) -> 5000 | I5: =IF($B5>n,"",INDEX(Pardavimas[4 KETVIRTIS],$D5)) -> 5000 | J5: =IF($B5>n,"",SUM(F5:I5)) -> 18500
B6: 2 | C6: =IF($B6>n,"",LARGE(Pardavimas[IŠ VISO],2)) -> 11480.3 | D6: =IF($B6>n,"",IF(C5=C6,MATCH(C6,OFFSET(Pardavimas[IŠ VISO],D5,),0)+D5,MATCH(C6,Pardavimas[IŠ VISO],0))) -> 16 | E6: =IF($B6>n,"",INDEX(Pardavimas[PRODUKTAS],D6)) -> Sėdynės krepšiai | F6: =IF($B6>n,"",INDEX(Pardavimas[1 KETVIRTIS],$D6)) -> 2413 | G6: =IF($B6>n,"",INDEX(Pardavimas[2 KETVIRTIS],$D6)) -> 2051.05 | H6: =IF($B6>n,"",INDEX(Pardavimas[3 KETVIRTIS],$D6)) -> 4000 | I6: =IF($B6>n,"",INDEX(Pardavimas[4 KETVIRTIS],$D6)) -> 3016.25 | J6: =IF($B6>n,"",SUM(F6:I6)) -> 11480.3
B7: 3 | C7: =IF($B7>n,"",LARGE(Pardavimas[IŠ VISO],3)) -> 10283.75 | D7: =IF($B7>n,"",IF(C6=C7,MATCH(C7,OFFSET(Pardavimas[IŠ VISO],D6,),0)+D6,MATCH(C7,Pardavimas[IŠ VISO],0))) -> 12 | E7: =IF($B7>n,"",INDEX(Pardavimas[PRODUKTAS],D7)) -> Ragai | F7: =IF($B7>n,"",INDEX(Pardavimas[1 KETVIRTIS],$D7)) -> 1895 | G7: =IF($B7>n,"",INDEX(Pardavimas[2 KETVIRTIS],$D7)) -> 1610.75 | H7: =IF($B7>n,"",INDEX(Pardavimas[3 KETVIRTIS],$D7)) -> 3445 | I7: =IF($B7>n,"",INDEX(Pardavimas[4 KETVIRTIS],$D7)) -> 3333 | J7: 10283.75
B8: 4 | C8: =IF($B8>n,"",LARGE(Pardavimas[IŠ VISO],4)) -> 9332.4 | D8: =IF($B8>n,"",IF(C7=C8,MATCH(C8,OFFSET(Pardavimas[IŠ VISO],D7,),0)+D7,MATCH(C8,Pardavimas[IŠ VISO],0))) -> 20 | E8: =IF($B8>n,"",INDEX(Pardavimas[PRODUKTAS],D8)) -> Rankenos | F8: =IF($B8>n,"",INDEX(Pardavimas[1 KETVIRTIS],$D8)) -> 2222 | G8: =IF($B8>n,"",INDEX(Pardavimas[2 KETVIRTIS],$D8)) -> 1888.7 | H8: =IF($B8>n,"",INDEX(Pardavimas[3 KETVIRTIS],$D8)) -> 2444.2 | I8: =IF($B8>n,"",INDEX(Pardavimas[4 KETVIRTIS],$D8)) -> 2777.5 | J8: 9332.4
B9: 5 | C9: =IF($B9>n,"",LARGE(Pardavimas[IŠ VISO],5)) -> 6511.68 | D9: =IF($B9>n,"",IF(C8=C9,MATCH(C9,OFFSET(Pardavimas[IŠ VISO],D8,),0)+D8,MATCH(C9,Pardavimas[IŠ VISO],0))) -> 21 | E9: =IF($B9>n,"",INDEX(Pardavimas[PRODUKTAS],D9)) -> Rankenų juosta | F9: =IF($B9>n,"",INDEX(Pardavimas[1 KETVIRTIS],$D9)) -> 1550.4 | G9: =IF($B9>n,"",INDEX(Pardavimas[2 KETVIRTIS],$D9)) -> 1317.84 | H9: =IF($B9>n,"",INDEX(Pardavimas[3 KETVIRTIS],$D9)) -> 1705.44 | I9: =IF($B9>n,"",INDEX(Pardavimas[4 KETVIRTIS],$D9)) -> 1938 | J9: 6511.68
B10: 6 | C10: =IF($B10>n,"",LARGE(Pardavimas[IŠ VISO],6)) ->  | D10: =IF($B10>n,"",IF(C9=C10,MATCH(C10,OFFSET(Pardavimas[IŠ VISO],D9,),0)+D9,MATCH(C10,Pardavimas[IŠ VISO],0))) ->  | E10: =IF($B10>n,"",INDEX(Pardavimas[PRODUKTAS],D10)) ->  | F10: =IF($B10>n,"",INDEX(Pardavimas[1 KETVIRTIS],$D10)) ->  | G10: =IF($B10>n,"",INDEX(Pardavimas[2 KETVIRTIS],$D10)) ->  | H10: =IF($B10>n,"",INDEX(Pardavimas[3 KETVIRTIS],$D10)) ->  | I10: =IF($B10>n,"",INDEX(Pardavimas[4 KETVIRTIS],$D10)) -> 
B11: 7 | C11: =IF($B11>n,"",LARGE(Pardavimas[IŠ VISO],7)) ->  | D11: =IF($B11>n,"",IF(C10=C11,MATCH(C11,OFFSET(Pardavimas[IŠ VISO],D10,),0)+D10,MATCH(C11,Pardavimas[IŠ VISO],0))) ->  | E11: =IF($B11>n,"",INDEX(Pardavimas[PRODUKTAS],D11)) ->  | F11: =IF($B11>n,"",INDEX(Pardavimas[1 KETVIRTIS],$D11)) ->  | G11: =IF($B11>n,"",INDEX(Pardavimas[2 KETVIRTIS],$D11)) ->  | H11: =IF($B11>n,"",INDEX(Pardavimas[3 KETVIRTIS],$D11)) ->  | I11: =IF($B11>n,"",INDEX(Pardavimas[4 KETVIRTIS],$D11)) -> 
B12: 8 | C12: =IF($B12>n,"",LARGE(Pardavimas[IŠ VISO],8)) ->  | D12: =IF($B12>n,"",IF(C11=C12,MATCH(C12,OFFSET(Pardavimas[IŠ VISO],D11,),0)+D11,MATCH(C12,Pardavimas[IŠ VISO],0))) ->  | E12: =IF($B12>n,"",INDEX(Pardavimas[PRODUKTAS],D12)) ->  | F12: =IF($B12>n,"",INDEX(Pardavimas[1 KETVIRTIS],$D12)) ->  | G12: =IF($B12>n,"",INDEX(Pardavimas[2 KETVIRTIS],$D12)) ->  | H12: =IF($B12>n,"",INDEX(Pardavimas[3 KETVIRTIS],$D12)) ->  | I12: =IF($B12>n,"",INDEX(Pardavimas[4 KETVIRTIS],$D12)) -> 
B13: 9 | C13: =IF($B13>n,"",LARGE(Pardavimas[IŠ VISO],9)) ->  | D13: =IF($B13>n,"",IF(C12=C13,MATCH(C13,OFFSET(Pardavimas[IŠ VISO],D12,),0)+D12,MATCH(C13,Pardavimas[IŠ VISO],0))) ->  | E13: =IF($B13>n,"",INDEX(Pardavimas[PRODUKTAS],D13)) ->  | F13: =IF($B13>n,"",INDEX(Pardavimas[1 KETVIRTIS],$D13)) ->  | G13: =IF($B13>n,"",INDEX(Pardavimas[2 KETVIRTIS],$D13)) ->  | H13: =IF($B13>n,"",INDEX(Pardavimas[3 KETVIRTIS],$D13)) ->  | I13: =IF($B13>n,"",INDEX(Pardavimas[4 KETVIRTIS],$D13)) -> 
B14: 10 | C14: =IF($B14>n,"",LARGE(Pardavimas[IŠ VISO],10)) ->  | D14: =IF($B14>n,"",IF(C13=C14,MATCH(C14,OFFSET(Pardavimas[IŠ VISO],D13,),0)+D13,MATCH(C14,Pardavimas[IŠ VISO],0))) ->  | E14: =IF($B14>n,"",INDEX(Pardavimas[PRODUKTAS],D14)) ->  | F14: =IF($B14>n,"",INDEX(Pardavimas[1 KETVIRTIS],$D14)) ->  | G14: =IF($B14>n,"",INDEX(Pardavimas[2 KETVIRTIS],$D14)) ->  | H14: =IF($B14>n,"",INDEX(Pardavimas[3 KETVIRTIS],$D14)) ->  | I14: =IF($B14>n,"",INDEX(Pardavimas[4 KETVIRTIS],$D14)) -> 
E15: ="" -> 
B16: =ĮtrauktiKitą="taip" -> FALSE | E16: Kita | F16: =SUM(Pardavimas[1 KETVIRTIS]) - SUM(F5:F14) -> 6533 | G16: =SUM(Pardavimas[2 KETVIRTIS]) - SUM(G5:G14) -> 5553.05 | H16: =SUM(Pardavimas[3 KETVIRTIS]) - SUM(H5:H14) -> 6959.8 | I16: =SUM(Pardavimas[4 KETVIRTIS]) - SUM(I5:I14) -> 8166.25 | J16: =SUM(Pardavimas[IŠ VISO]) - SUM(J5:J14) -> 27212.1
E18: IŠ VISO | F18: =SUM(Pardavimas[1 KETVIRTIS]) -> 18613.4 | G18: =SUM(Pardavimas[2 KETVIRTIS]) -> 16921.39 | H18: =SUM(Pardavimas[3 KETVIRTIS]) -> 23554.44 | I18: =SUM(Pardavimas[4 KETVIRTIS]) -> 24231 | J18: =SUM(Pardavimas[IŠ VISO]) -> 83320.23
B22: ="BENDRA SUMA IR PAGRINDINIAI "& n &" PRODUKTAI" -> BENDRA SUMA IR PAGRINDINIAI 5 PRODUKTAI
